bitfinex-derivatives/quotes_ETHF0:USTF0_20250501
["timestamp","ask_amount","ask_price","bid_price","bid_amount"]
[1746060830515,4.89992,1798.7,1798.6,2.75862]
[1746060831022,4.89992,1798.7,1798.6,1.6467]
[1746060831420,6.53732,1798.7,1798.6,1.6467]
[1746060832522,1.1121,1798.3,1798.2,3.2078]
[1746060832720,4.6201,1798.3,1798.2,3.2078]
[1746060833023,1.11216,1798.2,1798.1,2.544]
[1746060834124,4.90016,1798.2,1798.1,2.544]
[1746060834422,6.52456,1798.2,1798.1,1.6739]
[1746060842530,1.11222,1798.1,1798.0,0.8232]
[1746060842724,3.67522,1798.1,1798.0,0.8232]
[1746060842925,3.67522,1798.1,1798.0,2.449]
[1746060843116,7.46322,1798.1,1798.0,2.449]
[1746060843616,7.46322,1798.1,1798.0,1.6258]
[1746060846228,5.75882,1798.1,1798.0,1.6258]
[1746060849531,5.75882,1798.1,1798.0,2.73809]
[1746060849532,4.90022,1798.1,1798.0,2.73809]
[1746060854134,1.11222,1798.1,1798.0,5.94589]
[1746060854631,1.11222,1798.1,1798.0,2.73809]
[1746060855227,4.90022,1798.1,1798.0,2.73809]
[1746060857133,1.11222,1798.1,1798.0,2.73809]
[1746060858138,4.90022,1798.1,1798.0,2.73809]
[1746060871537,3.788,1798.1,1798.0,2.73809]
[1746060872238,4.62022,1798.2,1798.1,1.11222]
[1746060872538,4.62022,1798.2,1798.1,4.47232]
[1746060873039,4.62022,1798.2,1798.1,3.3601]
[1746060873238,8.40822,1798.2,1798.1,3.3601]
[1746060873943,8.40822,1798.2,1798.1,1.7005]
[1746060874137,1.11229,1798.0,1797.9,1.97909]
[1746060875435,1.11229,1798.0,1797.9,3.66049]
[1746060875844,1.11226,1798.1,1798.0,1.11222]
[1746060876040,1.11226,1798.1,1798.0,2.79362]
[1746060876234,4.90026,1798.1,1798.0,2.79362]
[1746060876936,4.90026,1798.1,1798.0,1.6814]
[1746060877943,4.90026,1798.1,1798.0,2.79369]
[1746060880536,3.788,1798.1,1798.0,2.79369]
[1746060880742,4.90022,1798.1,1798.0,2.79369]
[1746060883942,3.788,1798.1,1798.0,2.79369]
[1746060884149,12.78760004,1798.3,1798.2,1.11216]
[1746060884445,13.89970004,1798.3,1798.2,4.31996]
[1746060884843,13.89970004,1798.3,1798.2,6.78996]
[1746060885645,12.78760004,1798.3,1798.2,6.78996]
[1746060886245,12.78760004,1798.3,1798.2,3.58216]
[1746060886447,12.78760004,1798.3,1798.2,6.78996]
[1746060886642,4.6201,1798.3,1798.2,6.78996]
[1746060887348,3.508,1798.3,1798.2,6.78996]
[1746060888641,3.508,1798.3,1798.1,0.8697]
[1746060888839,1.90246,1798.2,1798.1,2.5269]
[1746060889042,3.61356,1798.2,1798.1,3.63912]
[1746060889243,7.40156,1798.2,1798.1,3.63912]
[1746060889852,7.40156,1798.2,1798.1,1.6572]
[1746060890043,7.40156,1798.2,1798.1,2.76942]
[1746060897346,7.40156,1798.2,1798.1,1.11222]
[1746060897545,1.11222,1798.1,1798.0,1.91184]
[1746060897750,2.77862,1798.1,1798.0,3.65844]
[1746060898258,5.4544,1798.1,1798.0,3.65844]
[1746060898848,4.90022,1798.1,1798.0,3.65844]
[1746060899344,3.788,1798.1,1798.0,3.65844]
[1746060899657,4.90022,1798.1,1798.0,3.65844]
[1746060900157,1.11222,1798.1,1798.0,3.65844]
[1746060900359,7.40671,1798.2,1798.1,1.11222]
[1746060901261,7.40671,1798.2,1798.1,2.79152]
[1746060901865,7.40671,1798.2,1798.1,1.11222]
[1746060902764,1.11222,1798.1,1798.0,1.11224]
[1746060902961,3.56842,1798.1,1798.0,1.11224]
[1746060903168,1.11235,1797.9,1797.8,5.83]
[1746060903362,4.61935,1797.9,1797.8,5.83]
[1746060903566,1.11253,1797.6,1797.5,8.54694207]
[1746060903759,4.61953,1797.6,1797.5,8.54694207]
[1746060904760,4.61953,1797.6,1797.5,1.1126]
[1746060905262,6.25173,1797.6,1797.5,1.1126]
[1746060906070,5.1392,1797.6,1797.5,1.1126]
[1746060906367,3.507,1797.6,1797.5,1.1126]
[1746060906563,3.507,1797.6,1797.5,3.6352]
[1746060912668,3.507,1797.6,1797.5,6.843]
[1746060913363,3.507,1797.6,1797.5,3.6352]
[1746060913973,3.507,1797.6,1797.5,6.843]
[1746060917265,3.507,1797.6,1797.5,4.9311]
[1746060917472,1.11266,1797.5,1797.3,4.0464]
[1746060917672,3.60086,1797.5,1797.4,1.11261]
[1746060918173,7.38886,1797.5,1797.4,1.11261]
[1746060919170,12.38886,1797.5,1797.4,1.11261]
[1746060919367,1.113,1796.9,1796.6,7.42199151]
[1746060919567,4.62097,1796.9,1796.8,2.73573]
[1746060919770,3.508,1796.9,1796.8,2.73573]
[1746060920473,1.11274,1797.3,1797.2,1.11278]
[1746060920673,7.82854,1797.3,1797.2,1.11278]
[1746060920872,6.7158,1797.3,1797.2,1.11278]
[1746060921272,10.5038,1797.3,1797.2,1.11278]
[1746060921768,10.5038,1797.3,1797.0,0.8703]
[1746060921769,1.11283,1797.2,1796.8,2.78251]
[1746060921977,3.49211,1797.2,1796.8,4.47808]
[1746060922167,7.28011,1797.2,1797.0,1.11286]
[1746060922367,2.70414,1797.1,1797.0,1.11286]
[1746060922872,1.5913,1797.1,1797.0,1.11286]
[1746060923167,5.3793,1797.1,1797.0,1.11286]
[1746060923975,5.3793,1797.1,1797.0,2.71896]
[1746060924273,3.788,1797.1,1797.0,2.71896]
[1746060931378,3.788,1797.1,1797.0,3.52836]
[1746060932381,3.508,1797.3,1797.2,1.11278]
[1746060932677,4.62072,1797.3,1797.2,1.11278]
[1746060933081,8.40872,1797.3,1797.2,1.11278]
[1746060933278,7.296,1797.3,1797.2,1.11278]
[1746060933479,7.296,1797.3,1797.2,1.96238]
[1746060934879,8.40872,1797.3,1797.2,1.96238]
[1746060935080,7.296,1797.3,1797.2,1.96238]
[1746060935574,8.40872,1797.3,1797.2,1.96238]
[1746060936178,7.296,1797.3,1797.2,1.96238]
[1746060940086,3.508,1797.3,1797.2,1.96238]
[1746060941186,7.296,1797.3,1797.2,1.96238]
[1746060942386,3.508,1797.3,1797.2,1.96238]
[1746060943879,3.508,1797.3,1797.2,3.58488]
[1746060948787,7.82852,1797.3,1797.2,3.58488]
[1746060948991,6.7158,1797.3,1797.2,3.58488]
[1746060949188,3.508,1797.3,1797.2,3.58488]
[1746060954696,4.62072,1797.3,1797.2,2.73528]
[1746060956296,3.508,1797.3,1797.2,2.73528]
[1746060959200,6.32032,1797.3,1797.2,2.73528]
[1746060961106,10.10832,1797.3,1797.2,2.73528]
[1746060961306,10.92522,1797.3,1797.2,2.73528]
[1746060973720,10.92522,1797.3,1797.2,1.6225]
[1746060973914,1.11278,1797.2,1797.1,1.11281]
[1746060974110,6.61538,1797.2,1797.1,1.11281]
[1746060974619,6.61538,1797.2,1797.1,2.75781]
[1746060984427,13.7104,1797.2,1796.5,11.10480342]
[1746060984727,1.11303,1796.8,1796.7,3.59705]
[1746060985722,1.93743,1796.8,1796.7,3.59705]
[1746060986131,1.93743,1796.8,1796.7,1.6786]
[1746060986329,7.40103,1796.8,1796.7,1.6786]
[1746060987631,7.40103,1796.8,1796.7,2.79169]
[1746060988235,7.40103,1796.8,1796.7,1.6786]
[1746060988531,7.40103,1796.8,1796.7,2.79169]
[1746060988931,7.40103,1796.8,1796.7,1.6786]
[1746060989129,7.40103,1796.8,1796.7,2.79169]
[1746060990231,7.40103,1796.8,1796.7,1.6786]
[1746060990431,1.11309,1796.7,1796.6,1.1131]
[1746060990732,4.32089,1796.7,1796.6,1.1131]
[1746060990932,4.32089,1796.7,1796.6,2.8403]
[1746060994233,1.11309,1796.7,1796.6,2.8403]
[1746061009042,5.14526,1796.8,1796.7,1.11309]
[1746061009350,3.2078,1796.8,1796.7,3.64399]
[1746061009550,3.509,1796.9,1796.8,1.11303]
[1746061009846,4.62197,1796.9,1796.8,2.83063]
[1746061014645,3.509,1796.9,1796.8,2.83063]
[1746061016444,4.62197,1796.9,1796.8,2.83063]
[1746061018156,1.11309,1796.8,1796.7,1.11305]
[1746061018349,3.65759,1796.8,1796.7,1.11305]
[1746061018651,3.65759,1796.8,1796.7,2.72785]
[1746061019239,7.44559,1796.8,1796.7,2.72785]
[1746061022950,6.3325,1796.8,1796.7,2.72785]
[1746061023151,7.44553,1796.8,1796.7,2.72785]
[1746061023651,3.788,1796.8,1796.7,2.72785]
[1746061023854,3.788,1796.8,1796.7,4.42435]
[1746061024155,4.62197,1796.9,1796.8,1.11303]
[1746061024357,4.62197,1796.9,1796.8,2.72353]
[1746061027959,3.509,1796.9,1796.8,2.72353]
[1746061032759,4.62197,1796.9,1796.8,2.72353]
[1746061033261,10.04577,1796.9,1796.8,2.72353]
[1746061034267,1.11309,1796.7,1796.6,1.11311]
[1746061034454,1.11309,1796.7,1796.6,2.83471]
[1746061034767,2.74889,1796.7,1796.6,2.83471]
[1746061035662,1.6358,1796.7,1796.6,2.83471]
[1746061035861,1.97895,1796.8,1796.7,1.11309]
[1746061036058,3.61475,1796.8,1796.7,2.83469]
[1746061037352,7.40275,1796.8,1796.7,2.83469]
[1746061038065,6.2897,1796.8,1796.7,2.83469]
[1746061038269,6.2897,1796.8,1796.7,3.65109]
[1746061039869,7.40273,1796.8,1796.7,3.65109]
[1746061040264,3.61473,1796.8,1796.7,3.65109]
[1746061042171,7.40273,1796.8,1796.7,3.65109]
[1746061042663,4.6539,1796.8,1796.7,3.65109]
[1746061043164,4.62202,1796.9,1796.8,1.11303]
[1746061043366,4.62202,1796.9,1796.8,2.71013]
[1746061044269,8.41002,1796.9,1796.8,2.71013]
[1746061044476,7.297,1796.9,1796.8,2.71013]
[1746061045065,8.40997,1796.9,1796.8,2.71013]
[1746061045269,3.509,1796.9,1796.8,2.71013]
[1746061046670,3.2078,1797.0,1796.9,1.11297]
[1746061046983,3.2078,1797.0,1796.9,4.49647]
[1746061047175,3.2078,1797.0,1796.9,8.28447]
[1746061048381,4.32071,1797.0,1796.9,8.28447]
[1746061049282,1.11291,1797.0,1796.9,4.49647]
[1746061049476,5.18588,1797.1,1797.0,1.11291]
[1746061049782,5.18588,1797.1,1797.0,2.76841]
[1746061052382,1.97804,1797.1,1797.0,2.76841]
[1746061054070,0.8652,1797.1,1797.0,2.76841]
[1746061054389,1.97804,1797.1,1797.0,2.76841]
[1746061054683,0.8652,1797.1,1797.0,2.76841]
[1746061054884,1.97804,1797.1,1797.0,2.76841]
[1746061055080,0.8652,1797.1,1797.0,2.76841]
[1746061055583,1.97804,1797.1,1797.0,2.76841]
[1746061056583,0.8652,1797.1,1797.0,2.76841]
[1746061063083,1.97804,1797.1,1797.0,2.76841]
[1746061065784,0.8652,1797.1,1797.0,2.76841]
[1746061065984,1.97804,1797.1,1797.0,2.76841]
[1746061068389,0.8652,1797.1,1797.0,2.76841]
[1746061068894,1.97804,1797.1,1797.0,2.76841]
[1746061070600,0.8652,1797.1,1797.0,2.76841]
[1746061071895,1.97804,1797.1,1797.0,2.76841]
[1746061078409,0.8652,1797.1,1797.0,2.76841]
[1746061078808,1.97804,1797.1,1797.0,2.76841]
[1746061079600,3.66474,1797.1,1797.0,2.76841]
[1746061080109,7.45274,1797.1,1797.0,2.76841]
[1746061081110,3.66474,1797.1,1797.0,2.76841]
[1746061082312,6.7168,1797.2,1797.1,1.11284]
[1746061082611,6.7168,1797.2,1797.1,3.59464]
[1746061084106,7.82958,1797.2,1797.1,3.59464]
[1746061084305,6.7168,1797.2,1797.1,3.59464]
[1746061088510,3.509,1797.2,1797.1,3.59464]
[1746061090914,3.2078,1797.4,1797.3,1.11272]
[1746061091218,12.75119118,1797.5,1797.4,1.11266]
[1746061092021,13.86379118,1797.5,1797.4,1.11266]
[1746061092222,12.75119118,1797.5,1797.4,2.79926]
[1746061092816,9.24319118,1797.5,1797.4,2.79926]
[1746061093518,3.2078,1797.6,1797.5,1.1126]
[1746061093719,3.2078,1797.6,1797.5,4.444]
[1746061094623,9.24319118,1797.7,1797.6,1.11253]
[1746061094824,9.24319118,1797.7,1797.6,2.83943]
[1746061097626,3.508,1797.8,1797.7,1.11247]
[1746061097825,3.508,1797.8,1797.7,3.53197]
[1746061098132,3.2078,1797.9,1797.8,1.11241]
[1746061098319,3.2078,1797.9,1797.8,3.58051]
[1746061104432,3.5817,1798.0,1797.9,1.11235]
[1746061104633,6.7895,1798.0,1797.9,1.11235]
[1746061105130,10.5775,1798.0,1797.9,1.11235]
[1746061105827,1.11241,1797.8,1797.7,1.11245]
[1746061106019,4.61941,1797.8,1797.7,1.11245]
[1746061106428,6.28161,1797.8,1797.7,1.11245]
[1746061107330,10.06961,1797.8,1797.7,1.11245]
[1746061110235,13.27741,1797.8,1797.7,1.11245]
[1746061110429,1.11247,1797.7,1797.6,1.6243]
[1746061110628,2.68767,1797.7,1797.6,2.73683]
[1746061115738,2.68767,1797.7,1797.6,1.11253]
[1746061116127,6.47567,1797.7,1797.6,1.11253]
[1746061124058,6.47567,1797.7,1797.6,2.77313]
[1746061125655,6.47567,1797.7,1797.6,1.6606]
[1746061125852,6.47567,1797.7,1797.5,1.11258]
[1746061125853,1.11253,1797.6,1797.5,1.11258]
[1746061126152,7.29423,1797.6,1797.5,1.11258]
[1746061126458,7.29423,1797.6,1797.5,2.69978]
[1746061127860,6.50633,1797.6,1797.5,2.69978]
[1746061132147,2.71833,1797.6,1797.5,2.69978]
[1746061132347,4.8136,1797.6,1797.3,1.11268]
[1746061132552,1.11266,1797.4,1797.3,1.11272]
[1746061132747,1.11266,1797.4,1797.3,2.80212]
[1746061133252,4.90066,1797.4,1797.3,2.80212]
[1746061135256,1.11266,1797.4,1797.3,2.80212]
[1746061135862,5.41454,1797.5,1797.4,1.11266]
[1746061136055,5.41454,1797.5,1797.4,3.53496]
[1746061136255,9.20254,1797.5,1797.4,3.53496]
[1746061138060,8.0899,1797.5,1797.4,3.53496]
[1746061138362,7.295,1797.5,1797.4,3.53496]
[1746061139265,4.6196,1797.5,1797.4,3.53496]
[1746061140160,3.507,1797.5,1797.4,3.53496]
[1746061141365,4.6196,1797.5,1797.4,3.53496]
[1746061142868,3.507,1797.5,1797.4,3.53496]
[1746061148059,12.77127253,1797.8,1797.7,1.11247]
[1746061148768,12.77127253,1797.8,1797.7,2.72827]
[1746061149168,12.77127253,1797.8,1797.7,6.51627]
[1746061151271,12.77127253,1797.8,1797.7,2.72827]
[1746061151871,3.507,1797.8,1797.7,2.72827]
[1746061153863,2.70164,1798.0,1797.9,1.11235]
[1746061154569,2.70164,1798.0,1797.9,2.73965]
[1746061154869,1.5893,1798.0,1797.9,2.73965]
[1746061155264,5.3773,1798.0,1797.9,2.73965]
[1746061155771,6.48959,1798.0,1797.9,2.73965]
[1746061156768,5.3773,1798.0,1797.9,2.73965]
[1746061157071,6.48959,1798.0,1797.9,2.73965]
[1746061158165,7.29899,1798.0,1797.9,2.73965]
[1746061159068,6.1867,1798.0,1797.9,2.73965]
[1746061160075,7.29899,1798.0,1797.9,2.73965]
[1746061160258,6.1867,1798.0,1797.9,2.73965]
[1746061160463,3.788,1798.0,1797.9,2.73965]
[1746061163570,4.90029,1798.0,1797.9,2.73965]
[1746061163768,3.788,1798.0,1797.9,2.73965]
[1746061164675,4.90029,1798.0,1797.9,2.73965]
[1746061165972,3.788,1798.0,1797.9,2.73965]
[1746061166167,0.8618,1798.1,1798.0,1.11229]
[1746061166366,0.8618,1798.1,1798.0,3.64149]
[1746061166772,1.97402,1798.1,1798.0,3.64149]
[1746061167164,7.41912,1798.1,1798.0,2.80549]
[1746061170777,4.6498,1798.1,1798.0,3.63469]
[1746061170976,4.6498,1798.1,1798.0,4.50729]
[1746061171169,0.8618,1798.1,1798.0,4.50729]
[1746061171377,3.506,1798.2,1798.1,1.11222]
[1746061171674,3.506,1798.2,1798.1,2.85142]
[1746061176780,0.8193,1798.3,1798.2,1.11216]
[1746061177076,3.505,1798.4,1798.3,1.1121]
[1746061177278,3.505,1798.4,1798.3,3.5916]
[1746061182686,3.66717,1798.6,1798.5,1.11198]
[1746061182883,0.8139,1798.6,1798.5,1.11198]
[1746061183281,4.6019,1798.6,1798.5,2.85858]
[1746061184288,5.71382,1798.6,1798.5,2.85858]
[1746061184681,4.6019,1798.6,1798.5,2.85858]
[1746061196198,5.71382,1798.6,1798.5,2.85858]
[1746061197197,4.6019,1798.6,1798.5,2.85858]
[1746061197901,5.71382,1798.6,1798.5,1.11198]
[1746061198093,8.10952,1798.6,1798.5,1.11198]
[1746061199501,8.10952,1798.6,1798.5,2.79368]
[1746061200203,6.9976,1798.6,1798.5,2.79368]
[1746061200407,6.2068,1798.6,1798.5,2.79368]
[1746061201800,4.6019,1798.6,1798.5,2.79368]
[1746061202996,4.6019,1798.6,1798.5,3.63548]
[1746061203395,5.71382,1798.6,1798.5,2.79368]
[1746061203594,7.34442,1798.6,1798.5,2.79368]
[1746061203795,6.2325,1798.6,1798.5,2.79368]
[1746061204004,4.6019,1798.6,1798.5,2.79368]
[1746061207899,3.788,1798.6,1798.5,2.79368]
[1746061208096,1.98107,1798.7,1798.6,1.11192]
[1746061208297,3.56667,1798.7,1798.6,2.82832]
[1746061208496,2.4548,1798.7,1798.6,2.82832]
[1746061208705,0.8692,1798.7,1798.6,3.63002]
[1746061209303,4.6572,1798.7,1798.6,3.63002]
[1746061210207,0.8692,1798.7,1798.6,3.63002]
[1746061211207,4.6572,1798.7,1798.6,3.63002]
[1746061213910,5.76905,1798.7,1798.6,2.82832]
[1746061214110,4.43605,1798.7,1798.6,2.82832]
[1746061214301,3.3242,1798.7,1798.6,2.82832]
[1746061214501,2.5069,1798.7,1798.6,2.82832]
[1746061214702,2.5069,1798.7,1798.6,3.64892]
[1746061215202,4.6572,1798.7,1798.6,3.64892]
[1746061215811,3.788,1798.7,1798.6,3.64892]
[1746061216011,3.788,1798.7,1798.6,4.45252]
[1746061218111,12.0769,1798.8,1798.7,1.11185]
[1746061218313,12.0769,1798.8,1798.7,2.79415]
[1746061220614,10.9651,1798.8,1798.7,2.79415]
[1746061221013,9.0942,1798.8,1798.7,2.79415]
[1746061221216,7.293,1798.8,1798.7,2.79415]
[1746061222215,3.505,1798.8,1798.7,2.79415]
[1746061223214,7.293,1798.8,1798.7,2.79415]
[1746061230113,7.29615601,1798.8,1798.7,2.79415]
[1746061231117,3.50815601,1798.8,1798.7,2.79415]
[1746061237523,3.50815601,1798.8,1798.7,6.00195]
[1746061237715,0.00315601,1798.8,1798.7,6.00195]
[1746061237911,1.9281,1798.9,1798.7,4.8901]
[1746061238114,9.26427253,1799.0,1798.9,1.11173]
[1746061238317,9.26427253,1799.0,1798.9,4.31953]
[1746061238615,9.26427253,1799.0,1798.9,6.75413]
[1746061240326,3.502,1799.1,1799.0,1.11167]
[1746061240516,3.502,1799.1,1799.0,3.60257]
[1746061241119,9.26427253,1799.4,1799.0,7.4909]
[1746061241421,10.37572253,1799.4,1799.3,1.11148]
[1746061241824,9.26427253,1799.4,1799.3,1.11148]
[1746061242128,13.90907253,1799.4,1799.3,1.11148]
[1746061242424,13.90907253,1799.4,1799.3,2.81018]
[1746061244426,15.02049253,1799.4,1799.3,2.81018]
[1746061244926,16.72099253,1799.4,1799.3,2.81018]
[1746061245128,7.45672,1799.4,1799.3,2.81018]
[1746061245727,7.45672,1799.4,1799.3,1.11148]
[1746061246629,7.45672,1799.4,1799.3,2.82608]
[1746061246828,6.3453,1799.4,1799.3,2.82608]
[1746061248032,4.6448,1799.4,1799.3,2.82608]
[1746061248229,3.788,1799.4,1799.3,2.82608]
[1746061249335,9.45445,1799.6,1799.5,1.11136]
[1746061249927,1.11136,1799.5,1799.4,1.6419]
[1746061250134,1.11148,1799.3,1799.2,3.6482]
[1746061250933,2.75128,1799.3,1799.2,3.6482]
[1746061251231,5.4278,1799.3,1799.2,3.6482]
[1746061251424,6.53928,1799.3,1799.2,3.6482]
[1746061252323,5.4278,1799.3,1799.2,3.6482]
[1746061252724,6.53928,1799.3,1799.2,3.6482]
[1746061253735,3.788,1799.3,1799.2,3.6482]
[1746061254030,3.788,1799.3,1799.2,4.5128]
[1746061254231,1.11143,1799.4,1799.3,1.11148]
[1746061254530,1.11143,1799.4,1799.3,2.77918]
[1746061255233,4.89943,1799.4,1799.3,2.77918]
[1746061258533,3.788,1799.4,1799.3,2.77918]
[1746061258744,2.51145601,1799.4,1799.3,5.98698]
[1746061259035,2.51145601,1799.4,1799.3,10.98698]
[1746061259235,10.37552253,1799.7,1799.6,1.1113]
[1746061261244,9.26427253,1799.7,1799.6,1.1113]
[1746061261626,10.37551253,1799.7,1799.6,1.9691]
[1746061262226,9.26427253,1799.7,1799.6,1.9691]
[1746061262434,9.26427253,1799.7,1799.6,3.5684]
[1746061263133,1.11111,1799.9,1799.8,1.11117]
[1746061263539,1.1111,1800.0,1799.9,1.11106]
[1746061264133,4.8991,1800.0,1799.9,3.51966]
[1746061264636,3.788,1800.0,1799.9,3.51966]
[1746061265138,1.9624,1800.1,1800.0,1.11105]
[1746061265326,0.8514,1800.1,1800.0,2.85715]
[1746061265525,12.47207253,1800.2,1800.1,1.11099]
[1746061265732,13.58300253,1800.2,1800.1,2.85709]
[1746061266033,12.47207253,1800.2,1800.1,2.85709]
[1746061266238,17.37100253,1800.2,1800.1,2.85709]
[1746061266440,19.94960253,1800.2,1800.1,2.85709]
[1746061266941,19.10470253,1800.2,1800.1,2.85709]
[1746061267930,9.84043,1800.2,1800.1,2.85709]
[1746061269044,6.63263,1800.2,1800.1,2.85709]
[1746061269644,6.63263,1800.2,1800.1,1.7461]
[1746061271242,5.5217,1800.2,1799.9,0.8093]
[1746061271439,4.31885,1800.0,1799.9,1.6026]
[1746061271640,1.11105,1800.0,1799.9,2.71371]
[1746061271946,2.3647,1800.1,1799.8,1.1111]
[1746061271947,1.11116,1799.9,1799.8,1.1111]
[1746061273143,4.89916,1799.9,1799.8,1.1111]
[1746061273345,4.89916,1799.9,1799.8,2.7137]
[1746061280151,4.89911,1799.9,1799.8,2.7137]
[1746061280341,4.89911,1799.9,1799.8,3.5076]
[1746061280646,3.788,1799.9,1799.8,3.5076]
[1746061280847,3.788,1799.9,1799.8,6.7154]
[1746061281147,1.11109,1800.0,1799.9,1.11111]
[1746061281346,1.11098,1800.2,1800.0,1.11105]
[1746061281546,1.11098,1800.2,1800.1,2.78923]
[1746061281748,1.11098,1800.2,1800.1,3.58313]
[1746061282246,4.89898,1800.2,1800.1,2.4722]
[1746061282447,4.89898,1800.2,1800.1,3.58319]
[1746061284250,4.89898,1800.2,1800.1,2.78929]
[1746061285348,6.56534,1800.2,1799.8,3.2078]
[1746061285649,6.56534,1800.2,1799.7,6.94119]
[1746061285650,1.11117,1799.8,1799.7,6.94119]
[1746061285839,9.39151,1800.1,1799.9,1.11106]
[1746061286038,1.1111,1800.0,1799.9,1.11106]
[1746061287249,1.11117,1799.8,1799.7,5.83]
[1746061287448,1.1113,1799.6,1799.5,4.60932]
[1746061287649,5.98574,1799.8,1799.6,1.1113]
[1746061287650,3.65509,1799.7,1799.6,1.1113]
[1746061287838,3.65509,1799.7,1799.6,2.7977]
[1746061288043,0.836,1799.7,1799.6,2.7977]
[1746061288255,3.788,1799.7,1799.6,2.7977]
[1746061288446,4.89924,1799.7,1799.6,2.7977]
[1746061290846,3.788,1799.7,1799.6,2.7977]
[1746061291261,1.11114,1799.9,1799.8,1.11117]
[1746061291759,1.11114,1799.9,1799.8,3.70657]
[1746061292253,4.89914,1799.9,1799.8,3.70657]
[1746061292756,4.89911,1799.9,1799.8,3.70657]
[1746061293755,3.788,1799.9,1799.8,3.70657]
[1746061293958,3.788,1799.9,1799.8,6.91437]
[1746061294255,1.97159,1800.0,1799.9,1.11111]
[1746061294452,1.97159,1800.0,1799.9,2.76391]
[1746061294453,1.11109,1800.0,1799.9,2.76391]
[1746061295355,4.89909,1800.0,1799.9,2.76391]
[1746061301062,3.788,1800.0,1799.9,2.76391]
[1746061302163,2.75612,1800.1,1800.0,1.11105]
[1746061302461,2.75612,1800.1,1800.0,2.83335]
[1746061302860,2.75612,1800.1,1800.0,1.7223]
[1746061303262,4.89902,1800.1,1800.0,2.83335]
[1746061306364,3.788,1800.1,1800.0,2.83335]
[1746061310169,6.64048,1800.2,1800.1,1.11099]
[1746061310367,6.64048,1800.2,1800.1,2.70539]
[1746061313165,5.5295,1800.2,1800.1,2.70539]
[1746061313566,3.788,1800.2,1800.1,2.70539]
[1746061320169,4.89893,1800.2,1800.1,2.70539]
[1746061320473,3.788,1800.2,1800.1,2.70539]
[1746061320671,5.4569,1800.2,1800.1,2.70539]
[1746061321274,3.788,1800.2,1800.1,2.70539]
[1746061321668,3.788,1800.2,1800.1,5.91319]
[1746061322170,0.8581,1800.4,1800.3,1.11087]
[1746061322566,0.8581,1800.4,1800.3,2.74337]
[1746061323071,6.2819,1800.4,1800.3,2.74337]
[1746061323267,7.3927,1800.4,1800.3,2.74337]
[1746061323767,8.2386,1800.4,1800.3,2.74337]
[1746061323976,1.1109,1800.3,1800.0,4.3549]
[1746061324167,2.7467,1800.3,1800.2,1.1109]
[1746061324774,1.11093,1800.2,1800.1,2.78585]
[1746061324975,2.74673,1800.2,1800.1,2.78589]
[1746061325176,7.38463,1800.2,1800.1,2.78589]
[1746061325674,1.11099,1800.1,1799.9,3.2078]
[1746061325872,1.11099,1800.1,1800.0,1.11105]
[1746061325873,3.57199,1800.1,1800.0,1.11105]
[1746061326075,3.57199,1800.1,1800.0,2.72995]
[1746061327175,7.35999,1800.1,1800.0,2.72995]
[1746061327475,3.788,1800.1,1800.0,2.72995]
[1746061328169,0.8252,1800.4,1800.3,1.11087]
[1746061328478,10.37503253,1800.5,1800.4,1.1108]
[1746061329174,14.16303253,1800.5,1800.4,1.1108]
[1746061329375,15.89013253,1800.5,1800.4,1.1108]
[1746061329877,13.05227253,1800.5,1800.4,1.1108]
[1746061330378,14.16301253,1800.5,1800.4,2.8028]
[1746061331671,13.05227253,1800.5,1800.4,2.8028]
[1746061331978,3.788,1800.5,1800.4,2.8028]
[1746061332178,1.11074,1800.5,1800.4,2.8028]
[1746061332379,1.7271,1800.6,1800.5,1.11074]
[1746061332574,1.7271,1800.6,1800.5,2.85264]
[1746061332973,2.83784,1800.6,1800.5,1.7419]
[1746061333180,6.62584,1800.6,1800.5,2.85264]
[1746061334681,5.5151,1800.6,1800.5,2.85264]
[1746061334978,6.62578,1800.6,1800.5,2.85264]
[1746061336075,4.89868,1800.6,1800.5,2.85264]
[1746061336773,4.89868,1800.6,1800.5,1.7419]
[1746061336980,1.1108,1800.4,1800.3,2.71487]
[1746061338181,4.8988,1800.4,1800.3,2.71487]
[1746061338377,5.7031,1800.4,1800.3,2.71487]
[1746061338882,5.7031,1800.4,1800.3,1.604]
[1746061339084,6.5227,1800.4,1800.3,2.71487]
[1746061339684,6.5227,1800.4,1800.3,1.604]
[1746061340984,1.11093,1800.2,1800.1,0.8031]
[1746061341876,1.11093,1800.2,1800.1,1.91409]
[1746061342386,4.89893,1800.2,1800.1,1.91409]
[1746061345187,1.11093,1800.2,1800.1,1.91409]
[1746061346087,4.89893,1800.2,1800.1,1.91409]
[1746061348082,4.89893,1800.2,1800.1,3.53799]
[1746061348388,3.788,1800.2,1800.1,8.53799]
[1746061349286,9.26427253,1800.4,1800.3,1.11087]
[1746061349882,10.37500253,1800.6,1800.5,1.11074]
[1746061350382,13.05227253,1800.6,1800.5,1.11074]
[1746061350783,13.05227253,1800.6,1800.5,3.60214]
[1746061351185,9.26427253,1800.6,1800.5,3.60214]
[1746061353491,1.11064,1800.7,1800.6,1.11068]
[1746061353691,3.61191,1800.8,1800.7,1.11062]
[1746061354193,7.39991,1800.8,1800.7,1.11062]
[1746061355595,10.60771,1800.8,1800.7,1.11062]